bitfinex/quotes_BTCUSD_20240607
["timestamp","ask_amount","ask_price","bid_price","bid_amount"]
[1717770907281,0.1,71328.0,71327.0,0.2382]
[1717770907492,0.0604,71328.0,71327.0,0.2382]
[1717770908548,0.620038,71338.0,71329.0,0.21992504]
[1717770908764,0.01772815,71337.0,71334.0,0.19992504]
[1717770908993,0.0604,71336.0,71335.0,0.21992504]
[1717770909190,0.0604,71336.0,71330.0,0.1]
[1717770909191,0.01772815,71337.0,71336.0,0.44792504]
[1717770910689,0.01772815,71337.0,71336.0,0.54792504]
[1717770910903,0.00086,71337.0,71336.0,0.54792504]
[1717770911185,0.00186,71337.0,71336.0,0.54792504]
[1717770911811,0.483,71349.0,71348.0,0.44282504]
[1717770912019,0.004,71349.0,71348.0,0.46282504]
[1717770912232,0.004,71349.0,71348.0,0.62010754]
[1717770913442,0.004,71349.0,71348.0,1.06012117]
[1717770913644,0.005,71349.0,71348.0,1.06012117]
[1717770913848,0.004,71349.0,71348.0,1.06012117]
[1717770914054,0.004,71349.0,71348.0,1.05012117]
[1717770914273,0.005,71349.0,71348.0,1.05012117]
[1717770914485,0.005,71349.0,71348.0,0.1454367]
[1717770914869,0.005,71349.0,71347.0,0.19992504]
[1717770915310,0.005,71349.0,71348.0,0.19992504]
[1717770915685,0.004,71349.0,71348.0,0.19992504]
[1717770916107,0.005,71349.0,71348.0,0.22092504]
[1717770916460,0.005,71349.0,71348.0,0.21992504]
[1717770916663,0.004,71349.0,71348.0,0.19992504]
[1717770917067,0.005,71349.0,71348.0,0.20392504]
[1717770917845,0.005,71349.0,71348.0,0.20092504]
[1717770918416,0.005,71349.0,71348.0,0.001]
[1717770918622,0.005,71349.0,71348.0,0.14945213]
[1717770919024,0.005,71349.0,71348.0,0.003]
[1717770919025,0.004,71349.0,71348.0,0.003]
[1717770919381,0.005,71349.0,71348.0,0.003]
[1717770920410,0.004,71349.0,71348.0,0.003]
[1717770920798,0.004,71349.0,71348.0,0.20292504]
[1717770921003,0.02120831,71349.0,71348.0,0.20292504]
[1717770921967,0.02120831,71349.0,71348.0,0.21992504]
[1717770922172,0.004,71349.0,71348.0,0.40241754]
[1717770922380,0.004,71349.0,71348.0,0.48021754]
[1717770922531,0.004,71349.0,71348.0,0.6286715]
[1717770922937,0.006,71349.0,71348.0,0.6286715]
[1717770923366,0.004,71349.0,71348.0,0.6286715]
[1717770923707,0.007,71349.0,71348.0,0.6286715]
[1717770924510,0.004,71349.0,71348.0,0.6286715]
[1717770924713,0.004,71349.0,71348.0,0.7386715]
[1717770925055,0.004,71349.0,71348.0,1.02324843]
[1717770925582,0.004,71349.0,71348.0,1.24138789]
[1717770926082,0.005,71349.0,71348.0,1.23838789]
[1717770926501,0.004,71349.0,71348.0,1.23838789]
[1717770926961,0.005,71349.0,71348.0,1.51870389]
[1717770927164,0.01,71349.0,71348.0,1.51870389]
[1717770928437,0.005,71349.0,71348.0,1.51870389]
[1717770928966,0.005,71349.0,71348.0,1.15511047]
[1717770929174,0.005,71349.0,71348.0,1.79721735]
[1717770931905,0.005,71349.0,71348.0,1.80021735]
[1717770932139,0.005,71349.0,71348.0,1.80587055]
[1717770932390,0.005,71349.0,71348.0,2.08618655]
[1717770932675,0.004,71359.0,71358.0,0.37006304]
[1717770932916,0.004,71359.0,71358.0,1.56352756]
[1717770933110,0.004,71359.0,71358.0,1.84766752]
[1717770934187,0.005,71359.0,71358.0,1.84766752]
[1717770934338,0.004,71359.0,71358.0,1.84766752]
[1717770934536,0.004,71359.0,71358.0,1.86996002]
[1717770935489,0.004,71359.0,71358.0,1.87021767]
[1717770936242,0.004,71359.0,71358.0,1.87521767]
[1717770936473,0.004,71359.0,71358.0,1.23285314]
[1717770936788,0.004,71359.0,71358.0,1.87015056]
[1717770936990,0.004,71359.0,71358.0,1.87515056]
[1717770937192,0.004,71359.0,71358.0,1.87015056]
[1717770937831,0.004,71359.0,71358.0,1.87515056]
[1717770938383,0.004,71359.0,71358.0,1.87715056]
[1717770939408,0.004,71359.0,71358.0,1.88115056]
[1717770940238,0.004,71359.0,71358.0,1.88248677]
[1717770942332,0.004,71359.0,71358.0,1.88048677]
[1717770943853,0.004,71359.0,71358.0,1.88248677]
[1717770946855,0.004,71359.0,71358.0,1.88195054]
[1717770947409,0.004,71359.0,71358.0,2.16222654]
[1717770947614,0.004,71359.0,71358.0,2.45300216]
[1717770947838,0.00863,71370.0,71361.0,0.440397]
[1717770948041,0.00863,71370.0,71361.0,1.74996298]
[1717770948211,0.00863,71370.0,71361.0,1.45918736]
[1717770948408,0.00863,71370.0,71361.0,1.73891932]
[1717770949282,0.00863,71370.0,71361.0,1.73892]
[1717770949949,0.029,71383.0,71380.0,99.46150203]
[1717770950154,0.029,71383.0,71381.0,0.45798979]
[1717770950392,0.029,71383.0,71381.0,0.46482137]
[1717770951417,0.013,71382.0,71381.0,0.46482137]
[1717770951689,0.008,71382.0,71381.0,0.46483069]
[1717770951921,0.02454895,71382.0,71381.0,0.46483069]
[1717770952090,0.014,71382.0,71381.0,0.44353819]
[1717770956906,0.73451485,71382.0,71381.0,0.44353819]
[1717770957106,0.72750993,71382.0,71381.0,0.44353819]
[1717770957309,0.87750993,71382.0,71381.0,0.22545117]
[1717770957509,1.02820993,71382.0,71381.0,0.22545117]
[1717770957717,1.02820993,71382.0,71381.0,0.21861959]
[1717770958147,1.03420993,71382.0,71381.0,0.21961959]
[1717770958556,1.02820993,71382.0,71381.0,0.21861959]
[1717770958750,1.03920993,71382.0,71381.0,0.21961959]
[1717770958956,1.03320993,71382.0,71381.0,0.21861959]
[1717770959378,1.04120993,71382.0,71381.0,0.21961959]
[1717770960586,0.735091,71382.0,71381.0,0.24058155]
[1717770960785,0.735091,71382.0,71381.0,0.21861959]
[1717770960992,0.597091,71382.0,71381.0,0.22544848]
[1717770961203,0.74150993,71382.0,71381.0,0.22544848]
[1717770961402,0.89150993,71382.0,71381.0,0.22545977]
[1717770961720,0.89150993,71382.0,71381.0,0.21863088]
[1717770962559,0.88350993,71382.0,71381.0,0.21763088]
[1717770963625,0.89150993,71382.0,71381.0,0.21863088]
[1717770964099,0.95170993,71382.0,71381.0,0.21863088]
[1717770965669,0.95170993,71382.0,71381.0,0.07322824]
[1717770966884,1.35489193,71382.0,71381.0,0.05722825]
[1717770967085,1.45489193,71382.0,71381.0,0.05722825]
[1717770967322,1.5380654,71382.0,71381.0,0.05722825]
[1717770967461,1.45489193,71382.0,71381.0,0.05722825]
[1717770967863,1.55885877,71382.0,71381.0,0.05722825]
[1717770968661,1.45489193,71382.0,71381.0,0.04122825]
[1717770969008,0.169118,71368.0,71366.0,0.07222824]
[1717770969252,0.20032,71367.0,71366.0,0.07222824]
[1717770969452,0.20032,71367.0,71366.0,0.21765917]
[1717770969782,0.20032,71367.0,71366.0,0.21765899]
[1717770970130,0.20032,71367.0,71366.0,0.07222824]
[1717770970316,0.20032,71367.0,71366.0,0.21765857]
[1717770970518,0.20032,71367.0,71366.0,0.07222824]
[1717770970742,0.14012,71367.0,71366.0,0.217658]
[1717770970954,0.20132,71367.0,71366.0,0.217658]
[1717770971125,0.20132,71367.0,71366.0,0.07222824]
[1717770971321,0.20132,71367.0,71366.0,0.22065566]
[1717770971978,0.14112,71367.0,71366.0,0.07522824]
[1717770972136,0.14112,71367.0,71366.0,0.07222824]
[1717770972943,0.14112,71367.0,71366.0,0.22065739]
[1717770975568,0.001,71367.0,71366.0,0.48464067]
[1717770975780,0.001,71367.0,71366.0,0.66738243]
[1717770976322,0.001,71367.0,71366.0,0.64738243]
[1717770976520,0.001,71367.0,71366.0,0.66738243]
[1717770977655,0.001,71367.0,71366.0,0.64738243]
[1717770978299,0.001,71367.0,71366.0,0.22065739]
[1717770979168,0.001,71367.0,71366.0,0.42058243]
[1717770979373,0.001,71367.0,71366.0,0.44058243]
[1717770980331,0.01773563,71367.0,71366.0,0.44058243]
[1717770980676,0.001,71367.0,71366.0,0.42058243]
[1717770981319,0.001,71367.0,71366.0,0.22065739]
[1717770981885,0.001,71367.0,71366.0,0.14842915]
[1717770983409,0.001,71367.0,71366.0,0.35521031]
[1717770984013,0.001,71367.0,71366.0,0.37521031]
[1717770985474,0.001,71367.0,71366.0,0.52248454]
[1717770985678,0.001,71367.0,71366.0,0.85883231]
[1717770985898,0.001,71367.0,71366.0,1.00325124]
[1717770986038,0.001,71367.0,71366.0,1.25238847]
[1717770986239,0.001,71367.0,71366.0,1.23135221]
[1717770986442,0.001,71367.0,71366.0,1.22135221]
[1717770986651,0.001,71367.0,71366.0,1.23135221]
[1717770986859,0.001,71367.0,71366.0,1.22135221]
[1717770987474,0.001,71367.0,71366.0,1.21835221]
[1717770987675,0.0166816,71372.0,71370.0,0.19992504]
[1717770987877,0.1,71381.0,71372.0,0.19992504]
[1717770988145,0.00700542,71380.0,71373.0,0.15224169]
[1717770988314,0.00700542,71380.0,71374.0,0.14539431]
[1717770988553,0.00700542,71380.0,71375.0,0.14539431]
[1717770988708,0.00700542,71380.0,71376.0,0.14539431]
[1717770988913,0.248093,71381.0,71377.0,0.14539431]
[1717770989120,0.248093,71381.0,71378.0,0.14539431]
[1717770989315,0.248093,71381.0,71379.0,0.14539431]
[1717770989529,0.277093,71381.0,71380.0,0.14539431]
[1717770989771,0.427093,71381.0,71380.0,0.00683863]
[1717770989928,0.140099,71379.0,71374.0,0.004]
[1717770990318,0.4,71378.0,71375.0,0.14540543]
[1717770990506,0.4,71378.0,71376.0,0.14540543]
[1717770990920,0.140104,71376.0,71374.0,0.004]
[1717770991046,0.140104,71376.0,71375.0,0.14540705]
[1717770995445,0.141104,71376.0,71375.0,0.14540705]
[1717770995658,0.141104,71376.0,71375.0,0.14540741]
[1717770995859,0.140104,71376.0,71375.0,0.14540741]
[1717770996278,0.141104,71376.0,71375.0,0.14540741]
[1717770996484,0.145104,71376.0,71375.0,0.14540741]
[1717770996679,0.145104,71376.0,71375.0,0.15225229]
[1717770997058,0.145104,71376.0,71375.0,0.14540705]
[1717770997514,0.145104,71376.0,71375.0,0.15225006]
[1717770998272,0.141104,71376.0,71375.0,0.15225006]
[1717770998483,0.141104,71376.0,71375.0,0.14540705]
[1717770998655,0.146104,71376.0,71375.0,0.14640705]
[1717770999248,0.146104,71376.0,71375.0,0.14640718]
[1717770999679,0.145104,71376.0,71375.0,0.001]
[1717771000295,0.148104,71376.0,71375.0,0.001]
[1717771000496,0.148104,71376.0,71375.0,0.14641425]
[1717771000497,0.57272893,71376.0,71375.0,0.14641425]
[1717771000699,0.57272893,71376.0,71359.0,0.1665]
[1717771000700,0.4,71363.0,71359.0,0.1665]
[1717771000904,0.140132,71362.0,71360.0,0.15398036]
[1717771001100,0.140132,71362.0,71361.0,0.14543029]
[1717771001551,0.140132,71362.0,71361.0,0.00831444]
[1717771002001,0.140136,71360.0,71352.0,0.2293]
[1717771002262,0.140136,71360.0,71359.0,0.1504412]
[1717771002458,0.140136,71360.0,71359.0,0.15875898]
[1717771002658,0.140136,71360.0,71359.0,0.15375898]
[1717771002955,0.140136,71360.0,71359.0,0.1454412]
[1717771003837,0.141136,71360.0,71359.0,0.14544392]
[1717771004047,0.141136,71360.0,71359.0,0.34536896]
[1717771004260,0.141136,71360.0,71359.0,0.14544392]
[1717771004494,0.141136,71360.0,71359.0,0.1537617]
[1717771005152,0.140136,71360.0,71359.0,0.35368674]
[1717771005577,0.142136,71360.0,71359.0,0.35368674]
[1717771005708,0.142136,71360.0,71359.0,0.37368674]
[1717771005930,0.002,71360.0,71359.0,0.75057824]
[1717771006157,0.002,71360.0,71359.0,1.03513317]
[1717771006784,0.1,71375.0,71372.0,0.2363]
[1717771007001,0.479,71376.0,71375.0,0.19992504]
[1717771007232,0.479,71376.0,71375.0,0.21992504]
[1717771007457,0.479,71376.0,71375.0,0.35384938]
[1717771007667,0.479,71376.0,71375.0,0.37384938]
[1717771008540,0.4956126,71376.0,71375.0,0.37384938]
[1717771009804,0.4966126,71376.0,71375.0,0.37384938]
[1717771010013,0.0176126,71376.0,71375.0,0.37384938]
[1717771010230,0.0166126,71376.0,71375.0,0.37384938]
[1717771010442,0.00086,71381.0,71375.0,0.37384938]
[1717771010677,0.00086,71381.0,71378.0,0.19992504]
[1717771010889,0.00086,71381.0,71379.0,0.14540884]
[1717771011119,0.00086,71381.0,71380.0,0.14540884]
[1717771011319,0.00086,71381.0,71380.0,0.15390822]
[1717771011767,0.0178001,71381.0,71380.0,0.67721659]
[1717771011976,0.00086,71381.0,71380.0,0.71953326]
[1717771012615,0.00086,71381.0,71380.0,100.71953326]
[1717771012820,0.00086,71381.0,71380.0,100.61953326]
[1717771013410,0.00286,71381.0,71380.0,100.61953326]
[1717771015402,0.00286,71381.0,71380.0,100.47412442]
[1717771016004,0.00286,71381.0,71380.0,100.61952011]
[1717771019562,0.00486,71381.0,71380.0,100.61952011]
[1717771019796,0.00486,71381.0,71380.0,100.85961511]
[1717771020459,0.00486,71381.0,71380.0,100.859601]
[1717771021590,0.00486,71381.0,71380.0,0.859601]
[1717771022519,0.00486,71381.0,71380.0,0.869601]
[1717771023639,0.00286,71381.0,71380.0,0.869601]
[1717771023860,0.00086,71381.0,71380.0,0.859601]
[1717771024063,0.00186,71381.0,71380.0,0.869601]
[1717771024267,0.00186,71381.0,71380.0,0.872601]
[1717771024480,0.00086,71381.0,71380.0,0.872601]
[1717771024851,0.00086,71381.0,71380.0,1.152791]
[1717771025073,0.00086,71381.0,71380.0,1.29720993]
[1717771025482,0.00086,71381.0,71380.0,1.51524226]
[1717771025683,0.00086,71381.0,71380.0,1.51224226]
[1717771026087,0.00186,71381.0,71380.0,101.51224226]
[1717771026304,0.00186,71381.0,71380.0,101.53327165]
[1717771026305,0.00086,71381.0,71380.0,101.53327165]
[1717771026472,0.00086,71381.0,71380.0,101.31523932]
[1717771026689,0.00186,71381.0,71380.0,101.53327328]
[1717771027413,0.00186,71381.0,71380.0,101.53327161]
[1717771027757,0.00186,71381.0,71380.0,101.29420993]
[1717771029252,0.00186,71381.0,71380.0,101.14882835]
[1717771029441,0.00186,71381.0,71380.0,101.28418375]
[1717771029642,0.00186,71381.0,71380.0,101.29418375]
[1717771030029,0.00186,71381.0,71380.0,101.29718375]
[1717771030285,0.00186,71381.0,71380.0,101.57737375]
[1717771030473,0.10863,71384.0,71380.0,101.57737375]
[1717771030474,0.10863,71384.0,71383.0,1.26777004]
[1717771030661,0.10863,71384.0,71383.0,1.6302055]
[1717771030796,0.10863,71384.0,71383.0,1.78399683]
[1717771031003,0.10863,71384.0,71383.0,1.55407179]
[1717771031239,0.10863,71384.0,71383.0,1.78399683]
[1717771031446,0.10863,71384.0,71383.0,1.5659803]
[1717771031900,0.10863,71384.0,71383.0,1.58700826]
[1717771032248,0.10863,71384.0,71383.0,1.58700819]
[1717771032659,0.10863,71384.0,71383.0,1.5659803]
[1717771032971,0.10863,71384.0,71383.0,1.78399683]
[1717771033167,0.10963,71384.0,71383.0,1.78399683]
[1717771034998,0.10963,71384.0,71383.0,1.78699683]
[1717771039326,0.10963,71384.0,71383.0,1.4236249]
[1717771039531,0.10963,71384.0,71383.0,1.78697976]
[1717771048202,0.10963,71384.0,71383.0,0.81480483]
[1717771048538,0.10963,71384.0,71383.0,0.61679191]
[1717771050727,0.10863,71384.0,71383.0,0.61679191]
[1717771051198,0.10963,71384.0,71383.0,0.61379191]
[1717771051601,0.10863,71384.0,71383.0,0.61379191]
[1717771051935,0.10963,71384.0,71383.0,0.61379191]
[1717771052069,0.10963,71384.0,71383.0,0.68449693]
[1717771052264,0.10963,71384.0,71383.0,0.90254015]
[1717771052680,0.11063,71384.0,71383.0,0.92357042]
[1717771052958,0.11063,71384.0,71383.0,0.68449693]
[1717771053973,0.10863,71384.0,71383.0,0.68749693]
[1717771054174,0.10863,71384.0,71383.0,0.58749693]
[1717771054382,0.10963,71384.0,71383.0,0.58749693]
[1717771054602,0.10863,71384.0,71383.0,0.58749693]
[1717771055021,0.10963,71384.0,71383.0,0.58749693]
[1717771055861,0.10963,71384.0,71383.0,0.58449693]
[1717771056061,0.10863,71384.0,71383.0,0.74599693]
[1717771056984,0.10863,71384.0,71383.0,0.98507448]
[1717771057768,0.10863,71384.0,71383.0,0.96404421]
[1717771057937,0.10863,71384.0,71383.0,0.97144462]
[1717771058134,0.10963,71384.0,71383.0,0.97144462]
[1717771058425,0.10963,71384.0,71383.0,0.97444462]
[1717771058426,0.10863,71384.0,71383.0,0.97444462]
[1717771058917,0.10963,71384.0,71383.0,0.81294462]
[1717771059094,0.10963,71384.0,71383.0,0.80994462]
[1717771059423,0.10863,71384.0,71383.0,0.59191488]
[1717771059598,0.10963,71384.0,71383.0,0.8099541]
[1717771060322,0.10963,71384.0,71383.0,0.8129541]
[1717771061156,0.10963,71384.0,71383.0,1.2731321]
[1717771062168,0.10963,71384.0,71383.0,1.58365103]
[1717771062375,0.10963,71384.0,71383.0,1.64385103]
[1717771063522,0.10963,71384.0,71383.0,1.58365103]
[1717771063968,0.10963,71384.0,71383.0,1.57365103]
[1717771064211,0.10963,71384.0,71383.0,1.58365103]
[1717771064948,0.10963,71384.0,71383.0,1.57365103]
[1717771065912,0.10963,71384.0,71383.0,1.58365103]
[1717771066990,0.10963,71384.0,71383.0,1.58362625]
[1717771068101,0.10963,71384.0,71383.0,1.86380425]
[1717771068329,0.10963,71384.0,71383.0,2.19643671]
[1717771069910,0.10963,71384.0,71383.0,1.90576433]
[1717771070137,0.10963,71384.0,71383.0,1.86377456]
[1717771070795,0.10963,71384.0,71383.0,2.19641456]
[1717771071444,0.10963,71384.0,71383.0,1.90574706]
[1717771071669,0.10963,71384.0,71383.0,2.19642176]
[1717771071901,0.10963,71384.0,71383.0,1.86377456]
[1717771072824,0.10963,71384.0,71383.0,1.86378061]
[1717771080411,0.10963,71384.0,71383.0,1.79307559]
[1717771081231,0.10963,71384.0,71383.0,1.83504809]
[1717771082261,0.10963,71384.0,71383.0,1.82504809]
[1717771082789,0.10963,71384.0,71383.0,1.79307559]
[1717771083941,0.10963,71384.0,71383.0,1.26679759]
[1717771084241,0.14933,71384.0,71383.0,0.84220066]
[1717771084416,0.004,71389.0,71388.0,0.19992504]
[1717771084724,0.0642,71389.0,71388.0,0.34526515]
[1717771084859,0.0642,71389.0,71388.0,0.36120108]
[1717771085665,0.0642,71389.0,71388.0,0.36420108]
[1717771085916,0.0652,71389.0,71388.0,0.16427604]
[1717771086116,0.0642,71389.0,71388.0,0.16427604]
[1717771086321,0.004,71389.0,71388.0,0.36120108]
[1717771086521,0.0652,71389.0,71388.0,0.36120108]
[1717771086916,0.0652,71389.0,71388.0,0.36420108]
[1717771087326,0.0652,71389.0,71388.0,0.38420108]
[1717771087731,0.005,71389.0,71388.0,0.38420108]
[1717771087938,0.0652,71389.0,71388.0,0.38420108]
[1717771088140,0.0652,71389.0,71388.0,0.36420108]
[1717771089024,0.005,71389.0,71388.0,0.38420108]
[1717771089214,0.005,71389.0,71388.0,0.36420108]
[1717771089414,0.005,71389.0,71388.0,0.38420108]
[1717771089628,0.005,71389.0,71388.0,0.38422901]
[1717771090867,0.005,71389.0,71388.0,0.70095992]
[1717771091088,0.005,71389.0,71388.0,0.84103892]
[1717771091458,0.005,71389.0,71388.0,0.68673892]
[1717771092684,0.005,71389.0,71388.0,0.84115785]
[1717771092879,0.005,71389.0,71388.0,1.05919467]
[1717771093079,0.005,71389.0,71388.0,1.33935367]
[1717771094062,0.005,71389.0,71388.0,1.57405367]
[1717771095297,0.004,71389.0,71388.0,1.57105367]
[1717771095661,0.005,71389.0,71388.0,1.57505367]
[1717771096273,0.005,71389.0,71388.0,1.57205367]
[1717771096665,0.005,71389.0,71388.0,1.57505367]
[1717771098215,0.00864,71393.0,71392.0,0.02]
[1717771098390,0.00864,71393.0,71392.0,1.23524041]
[1717771098598,0.00864,71393.0,71392.0,1.16504041]
[1717771098799,0.00864,71393.0,71392.0,1.16427997]
[1717771099638,0.00864,71393.0,71392.0,1.16727997]
[1717771100055,0.00864,71393.0,71392.0,1.22747997]
[1717771100214,0.00864,71393.0,71392.0,1.23447997]
[1717771100416,0.00864,71393.0,71392.0,1.23847997]
[1717771100660,0.00864,71393.0,71392.0,1.24147997]
[1717771101311,0.00864,71393.0,71392.0,0.8780753]
[1717771101522,0.00864,71393.0,71392.0,1.24139528]
[1717771102850,0.00864,71393.0,71392.0,2.14668128]
[1717771103059,0.00864,71393.0,71392.0,2.14941901]
[1717771103224,0.00864,71393.0,71392.0,2.20961901]
[1717771103428,0.00864,71393.0,71392.0,2.14668128]
[1717771103837,0.00864,71393.0,71392.0,2.23059826]
[1717771104067,0.00864,71393.0,71392.0,2.22759826]
[1717771104409,0.00864,71393.0,71392.0,2.14368128]
[1717771104615,0.00864,71393.0,71392.0,2.22759826]
[1717771105228,0.00864,71393.0,71392.0,2.13968128]
[1717771105628,0.00864,71393.0,71392.0,2.14368128]
[1717771105836,0.004,71399.0,71398.0,1.16732204]
[1717771106040,0.004,71399.0,71398.0,1.73526095]
[1717771106250,0.004,71399.0,71398.0,1.75227304]
[1717771107358,0.004,71399.0,71398.0,1.75527304]
[1717771107501,0.004,71399.0,71398.0,1.85527304]
[1717771108112,0.004,71399.0,71398.0,1.79507304]
[1717771108338,0.004,71399.0,71398.0,1.85527304]
[1717771108742,0.004,71399.0,71398.0,1.85927304]
[1717771108963,0.004,71399.0,71398.0,1.85521652]
[1717771109322,0.004,71399.0,71398.0,1.85921652]
[1717771109537,0.004,71399.0,71398.0,1.85621652]
[1717771109773,0.004,71399.0,71398.0,1.85221652]
[1717771110007,0.004,71399.0,71398.0,1.85421432]
[1717771110218,0.004,71399.0,71398.0,1.85821432]
[1717771110790,0.004,71399.0,71398.0,1.85621432]
[1717771111329,0.004,71399.0,71398.0,2.13633332]
[1717771111667,0.004,71399.0,71398.0,2.13833332]
[1717771112321,0.004,71409.0,71408.0,0.35996504]
[1717771112583,0.004,71409.0,71408.0,0.94886687]
[1717771112792,0.004,71409.0,71408.0,0.96156574]
[1717771113395,0.004,71409.0,71408.0,1.24164574]
[1717771113982,0.004,71409.0,71408.0,1.28444574]
[1717771114181,0.004,71409.0,71408.0,1.28644574]
[1717771115775,0.004,71409.0,71408.0,1.28643898]
[1717771116604,0.004,71409.0,71408.0,1.57651898]
[1717771116783,0.004,71409.0,71408.0,1.80273026]
[1717771117203,0.004,71409.0,71408.0,1.86293026]
[1717771117845,0.004,71409.0,71408.0,1.54973026]
[1717771118048,0.004,71409.0,71408.0,1.55773026]
[1717771118248,0.004,71409.0,71408.0,1.61793026]
[1717771118454,0.004,71409.0,71408.0,1.55973026]
[1717771118621,0.004,71409.0,71408.0,1.61693026]
[1717771119028,0.004,71409.0,71408.0,1.61993026]
[1717771122914,0.004,71409.0,71408.0,1.55973026]
[1717771123119,0.004,71409.0,71408.0,1.61993026]
[1717771125003,0.004,71409.0,71408.0,1.25667579]
[1717771125205,0.004,71409.0,71408.0,1.61987959]
[1717771127197,0.004,71409.0,71408.0,1.55967959]
[1717771127375,0.004,71409.0,71408.0,1.61987959]
[1717771128156,0.0169844,71418.0,71417.0,0.150022]
[1717771128515,0.004,71419.0,71418.0,0.35994504]
[1717771128709,0.004,71419.0,71418.0,0.84416883]
[1717771128905,0.004,71419.0,71418.0,0.62208191]
[1717771129958,0.004,71419.0,71418.0,0.30215687]
[1717771130163,0.08065554,71419.0,71418.0,0.15792303]
[1717771130305,0.0642,71419.0,71418.0,0.15892303]
[1717771130709,0.004,71419.0,71418.0,0.15892303]
[1717771131160,0.004,71419.0,71418.0,0.35884807]
[1717771133326,0.004,71419.0,71418.0,0.37884807]
[1717771134458,0.004,71419.0,71418.0,0.35884807]
[1717771134821,0.00486,71419.0,71418.0,0.35884807]
[1717771136892,0.00486,71419.0,71418.0,0.35886635]
[1717771137103,0.00486,71419.0,71418.0,0.15894131]
[1717771138631,0.00486,71419.0,71418.0,0.35886635]
[1717771140365,0.00486,71419.0,71418.0,0.15894131]
[1717771140732,0.00486,71419.0,71418.0,0.15894408]
[1717771140948,0.00486,71419.0,71418.0,1.38604784]
[1717771141172,0.00486,71419.0,71418.0,1.60820302]
[1717771141555,0.00486,71419.0,71418.0,1.59804774]
[1717771142367,0.00486,71419.0,71418.0,1.87808874]
[1717771142537,0.00486,71419.0,71418.0,1.87708874]
[1717771142737,0.00486,71419.0,71418.0,1.88008874]
[1717771142979,0.0034993,71429.0,71428.0,0.150001]
[1717771143181,0.0034993,71429.0,71428.0,1.08907287]
[1717771143352,0.0034993,71429.0,71428.0,1.09575657]
[1717771143981,0.0034993,71429.0,71428.0,1.37575857]
[1717771144598,0.0034993,71429.0,71428.0,1.65776057]
[1717771144809,0.0034993,71429.0,71428.0,1.81326057]
[1717771145247,0.0034993,71429.0,71428.0,1.81126057]
[1717771145452,0.0034993,71429.0,71428.0,1.91333306]
[1717771145868,0.0034993,71429.0,71428.0,1.87446057]
[1717771146305,0.0034993,71429.0,71428.0,1.91631684]
[1717771146757,0.0034993,71429.0,71428.0,1.91531684]
[1717771146955,0.0034993,71429.0,71428.0,1.91831684]
[1717771147453,0.0034993,71429.0,71428.0,1.87446057]
[1717771147674,0.0034993,71429.0,71428.0,1.87646057]
[1717771149104,0.004,71439.0,71438.0,1.17923204]
[1717771149316,0.004,71439.0,71438.0,1.88587836]
[1717771149489,0.004,71439.0,71438.0,1.89249791]
[1717771149702,0.004,71439.0,71438.0,1.83229791]
[1717771149831,0.004,71439.0,71438.0,1.89249791]
[1717771150456,0.004,71439.0,71438.0,1.83229791]
[1717771150696,0.004,71439.0,71438.0,1.89549791]
[1717771151679,0.004,71439.0,71438.0,1.89749791]
[1717771152079,0.004,71439.0,71438.0,1.89731173]
[1717771153299,0.004,71439.0,71438.0,2.17727473]
[1717771153744,0.004,71439.0,71438.0,2.27727473]
[1717771154119,0.004,71439.0,71438.0,2.21707473]
[1717771154328,0.004,71439.0,71438.0,2.27727473]
[1717771154523,0.004,71439.0,71438.0,2.27527473]
[1717771154982,0.004,71439.0,71438.0,2.27727473]
[1717771155419,0.004,71439.0,71438.0,2.21407473]
[1717771155620,0.004,71439.0,71438.0,2.27427473]
[1717771155827,0.004,71439.0,71438.0,2.27727473]
[1717771156029,0.004,71439.0,71438.0,2.41707473]
[1717771156256,0.004,71449.0,71439.0,1.49978104]
[1717771156453,0.004,71449.0,71439.0,2.37734169]
[1717771156653,0.004,71449.0,71439.0,2.38389557]
[1717771157062,0.004,71449.0,71448.0,1.01973204]
[1717771157271,0.004,71449.0,71448.0,1.83461259]
[1717771157477,0.004,71449.0,71448.0,2.12107825]
[1717771157679,0.004,71449.0,71448.0,2.16685784]
[1717771158863,0.004,71449.0,71448.0,2.16785784]
[1717771159504,0.004,71449.0,71448.0,2.36785784]
[1717771159683,0.004,71449.0,71448.0,2.46785784]
[1717771160228,0.004,71449.0,71448.0,2.27085784]
[1717771160447,0.004,71449.0,71448.0,2.47085784]
[1717771160643,0.004,71449.0,71448.0,2.56785784]
[1717771160855,0.004,71449.0,71448.0,2.59085784]
[1717771161067,0.004,71459.0,71455.0,0.42992504]
[1717771161199,0.004,71459.0,71455.0,1.85754959]
[1717771161407,0.004,71459.0,71455.0,2.13744559]
[1717771161611,0.004,71459.0,71455.0,2.42601093]
[1717771162249,0.004,71459.0,71455.0,2.36581093]
[1717771162461,0.004,71459.0,71455.0,2.42601093]
[1717771162671,0.004,71459.0,71455.0,2.42801093]
[1717771163562,0.004,71459.0,71455.0,2.43101093]
[1717771164763,0.004,71459.0,71455.0,2.43086298]
[1717771164960,0.004,71459.0,71455.0,2.37066298]
[1717771165165,0.004,71459.0,71455.0,2.17066298]
[1717771165491,0.004,71459.0,71455.0,2.23086298]
[1717771165711,0.004,71459.0,71455.0,2.43086298]
[1717771166662,0.004,71459.0,71455.0,2.37066298]
[1717771166836,0.004,71459.0,71455.0,2.23086298]
[1717771167037,0.004,71459.0,71455.0,2.43086298]
[1717771167619,0.004,71459.0,71455.0,2.51426143]
[1717771168518,0.004,71459.0,71455.0,2.71426143]
[1717771168850,0.004,71459.0,71455.0,2.51453216]
[1717771170395,0.004,71459.0,71455.0,2.80488997]
[1717771171409,0.004,71459.0,71455.0,3.00488453]
[1717771172006,0.004,71459.0,71455.0,2.71453216]
[1717771172529,0.004,71459.0,71455.0,3.00488451]
[1717771172929,0.004,71459.0,71455.0,2.74468451]
[1717771173180,0.004,71459.0,71455.0,3.00488451]